bitfinex-derivatives/quotes_SOLF0:USTF0_20250829
["timestamp","ask_amount","ask_price","bid_price","bid_amount"]
[1756486371421,0.0360518,204.41,204.39,7.84]
[1756486371621,0.0360518,204.41,204.36,7.84]
[1756486372320,0.0360518,204.41,204.35,68.5008]
[1756486372822,0.0360518,204.41,204.4,7.84]
[1756486374123,0.0360518,204.41,204.32,7.52729719]
[1756486374317,0.0360518,204.41,204.32,7.84]
[1756486374622,2.46930532,204.4,204.32,7.84]
[1756486374926,117.6160518,204.41,204.32,7.84]
[1756486375119,122.0184518,204.41,204.32,12.2442]
[1756486375313,0.0360518,204.41,204.32,7.84]
[1756486375514,83.6160518,204.41,204.35,4.4035]
[1756486375825,0.0360518,204.41,204.35,7.84]
[1756486376717,0.0360518,204.41,204.38,4.4028]
[1756486376918,0.0360518,204.41,204.34,68.504]
[1756486377118,0.0360518,204.41,204.37,7.84]
[1756486377521,0.0360518,204.41,204.36,76.02449719]
[1756486377721,0.0360518,204.41,204.4,7.84]
[1756486380121,0.0360518,204.41,204.39,4.4026]
[1756486380425,0.0360518,204.41,204.38,7.84]
[1756486380723,0.0360518,204.41,204.37,7.84]
[1756486381322,0.0360518,204.41,204.4,7.84]
[1756486381520,126.88425014,204.57,204.44,76.3104]
[1756486381821,2.47156738,204.56,204.46,7.84]
[1756486382027,2.47156738,204.55,204.46,7.84]
[1756486382223,134.76,204.58,204.46,7.84]
[1756486382422,7.72,204.56,204.46,7.84]
[1756486382632,2.47015968,204.55,204.46,12.241]
[1756486382820,2.47015968,204.55,204.49,0.03721854]
[1756486383023,7.72,204.54,204.49,0.03721854]
[1756486383224,7.72,204.52,204.49,0.03721854]
[1756486383426,7.72,204.56,204.49,0.03721854]
[1756486383627,2.47014922,204.55,204.49,0.03721854]
[1756486383829,2.47014922,204.54,204.49,0.03721854]
[1756486384031,7.72,204.52,204.49,0.03721854]
[1756486384823,4.3999,204.53,204.49,0.03721854]
[1756486385033,7.72,204.51,204.49,0.03721854]
[1756486385232,7.72,204.55,204.49,0.03721854]
[1756486385433,7.52729719,204.51,204.49,0.03721854]
[1756486385628,137.17021456,204.5,204.41,7.84]
[1756486385834,12.1212,204.46,204.4,4.04813319]
[1756486386041,7.72,204.44,204.4,4.04813319]
[1756486386340,7.52729719,204.48,204.4,4.04813319]
[1756486386539,2.4712229,204.47,204.4,4.04813319]
[1756486386842,2.4712229,204.46,204.4,4.04813319]
[1756486387034,7.45,204.44,204.4,4.04813319]
[1756486387438,0.03127891,204.46,204.4,4.04813319]
[1756486387640,2.47186376,204.45,204.4,4.04813319]
[1756486387939,2.47186376,204.44,204.4,4.04813319]
[1756486388134,0.03127891,204.46,204.4,4.04813319]
[1756486388340,2.47244114,204.45,204.4,11.25813319]
[1756486388638,2.47237657,204.44,204.4,11.25813319]
[1756486388841,0.03127891,204.46,204.45,7.21]
[1756486389234,0.03127891,204.46,204.45,7.69]
[1756486391043,328.66,204.56,204.45,7.69]
[1756486391242,328.66,204.56,204.45,7.21]
[1756486391441,7.45,204.59,204.47,7.21]
[1756486391741,11.8485,204.59,204.47,7.21]
[1756486392042,7.45,204.59,204.5,7.21]
[1756486392246,5.43797367,204.62,204.5,75.6604]
[1756486392441,129.88763178,204.7,204.54,68.4366]
[1756486392634,2.46662123,204.67,204.56,7.21]
[1756486392839,2.46662123,204.66,204.56,7.21]
[1756486393140,463.03,204.68,204.59,0.03158739]
[1756486393440,2.46367621,204.67,204.59,0.03158739]
[1756486393742,5.43797367,204.71,204.6,7.21]
[1756486393941,2.46336578,204.7,204.6,7.21]
[1756486394140,5.43797367,204.71,204.6,7.21]
[1756486394342,5.43797367,204.71,204.6,75.6267]
[1756486394539,5.43797367,204.71,204.63,7.56094796]
[1756486394741,5.43797367,204.71,204.64,11.6073]
[1756486395344,5.43797367,204.71,204.64,19.13459719]
[1756486395938,5.43797367,204.71,204.67,7.21]
[1756486396245,5.43797367,204.71,204.68,7.21]
[1756486396445,5.43797367,204.71,204.67,7.52729719]
[1756486396743,5.43797367,204.71,204.69,7.21]
[1756486396945,8.08475658,204.74,204.71,7.21]
[1756486397340,8.08475658,204.74,204.73,7.21]
[1756486399641,8.08475658,204.74,204.71,0.03384107]
[1756486401847,8.08475658,204.74,204.72,4.3956]
[1756486403246,8.08475658,204.74,204.72,11.6056]
[1756486403842,8.08475658,204.74,204.72,4.3956]
[1756486404643,8.08475658,204.74,204.73,7.21]
[1756486404844,7.45,204.84,204.75,75.5767]
[1756486405047,7.45,204.84,204.77,68.3598]
[1756486405344,7.45,204.84,204.78,11.6041]
[1756486405548,0.84988949,204.9,204.79,14.73729719]
[1756486405549,2.566e-05,204.8,204.79,14.73729719]
[1756486405738,2.566e-05,204.8,204.79,15.21729719]
[1756486406844,2.566e-05,204.8,204.78,4.3941]
[1756486407345,2.566e-05,204.8,204.76,0.03748706]
[1756486409653,2.566e-05,204.8,204.78,4.3943]
[1756486410146,7.45,204.85,204.78,4.3943]
[1756486410454,7.45,204.85,204.76,0.03748706]
[1756486411753,11.843,204.85,204.76,0.03748706]
[1756486411955,7.45,204.85,204.76,0.03748706]
[1756486412151,7.45,204.82,204.76,0.03748706]
[1756486412956,7.45,204.82,204.76,4.43228706]
[1756486413257,7.45,204.82,204.76,0.03748706]
[1756486413459,11.8435,204.82,204.76,0.03748706]
[1756486413753,14.97729719,204.82,204.76,0.03748706]
[1756486413956,7.45,204.78,204.69,3.86793795]
[1756486414147,7.45,204.78,204.69,8.26413795]
[1756486414353,7.45,204.78,204.69,3.86793795]
[1756486415057,7.45,204.78,204.7,68.3815]
[1756486415257,0.03390254,204.76,204.72,75.5854]
[1756486415454,2.54e-06,204.76,204.75,11.605]
[1756486415653,7.45,204.84,204.75,7.21]
[1756486416657,7.45,204.84,204.77,0.03088383]
[1756486416855,7.45,204.84,204.77,4.42528383]
[1756486417256,7.45,204.84,204.77,0.03088383]
[1756486419258,4.3933,204.83,204.77,0.03088383]
[1756486419654,7.42,204.82,204.77,0.03088383]
[1756486419861,4.3933,204.83,204.77,0.03088383]
[1756486420261,7.42,204.82,204.77,0.03088383]
[1756486420561,11.8133,204.83,204.77,0.03088383]
[1756486421561,7.52729719,204.85,204.77,0.03088383]
[1756486421562,4.3937,204.81,204.77,0.03088383]
[1756486421958,7.42,204.8,204.77,0.03088383]
[1756486423662,11.8126,204.86,204.77,0.03088383]
[1756486424060,7.42,204.86,204.77,0.03088383]
[1756486424862,8.26967161,204.91,204.8,68.3501]
[1756486425158,7.42,204.91,204.8,75.87739719]
[1756486425358,11.8116,204.91,204.81,4.3935]
[1756486425561,11.8116,204.91,204.83,0.0364957]
[1756486426461,11.8116,204.91,204.83,4.4295957]
[1756486426962,7.42,204.91,204.83,4.4295957]
[1756486427266,7.42,204.91,204.83,0.0364957]
[1756486427762,4.3919,204.9,204.83,0.0364957]
[1756486427962,75.7296,204.93,204.83,0.0364957]
[1756486428166,75.7346,204.91,204.83,0.0364957]
[1756486428461,7.42,204.89,204.83,0.0364957]
[1756486428662,7.42,204.85,204.83,0.0364957]
[1756486429158,7.42,204.91,204.83,0.0364957]
[1756486429365,7.42,204.91,204.83,7.7964957]
[1756486429758,7.42,204.91,204.84,4.3929]
[1756486430156,7.42,204.91,204.83,7.7964957]
[1756486430356,11.8117,204.91,204.83,0.0364957]
[1756486430564,7.42,204.91,204.83,0.0364957]
[1756486430965,4.3919,204.9,204.83,0.0364957]
[1756486433164,2.45317836,204.89,204.83,0.0364957]
[1756486433470,4.3913,204.93,204.83,0.0364957]
[1756486433661,2.45306627,204.92,204.83,0.0364957]
[1756486433861,2.45306627,204.91,204.83,0.0364957]
[1756486434059,75.7209,204.95,204.83,0.0364957]
[1756486434267,7.42,204.93,204.83,0.0364957]
[1756486434467,7.42,204.91,204.87,3.98865462]
[1756486434666,2.45534555,204.9,204.87,3.98865462]
[1756486434966,9.87534555,204.89,204.87,4.02514213]
[1756486435161,2.4583249,204.88,204.87,4.02514213]
[1756486437872,2.46416771,204.88,204.87,4.02514213]
[1756486438373,2.46580189,204.88,204.87,4.02514213]
[1756486440676,2.46580189,204.88,204.87,3.90442546]
[1756486440871,1.89e-06,204.88,204.87,12.14442546]
[1756486441075,7.42,204.98,204.87,19.67172265]
[1756486441282,7.42,204.98,204.87,3.90442546]
[1756486441475,7.42,204.95,204.87,3.90442546]
[1756486442975,4.3913,204.92,204.87,3.90442546]
[1756486443277,11.8113,204.92,204.87,3.90442546]
[1756486443472,4.3913,204.92,204.87,3.90442546]
[1756486443676,7.42,204.91,204.87,3.90442546]
[1756486443976,126.86,204.93,204.87,3.90442546]
[1756486444178,4.3921,204.89,204.87,3.90442546]
[1756486444774,126.84,204.95,204.87,3.90442546]
[1756486444976,126.84,204.95,204.88,7.9109012]
[1756486445173,4.3919,204.9,204.88,7.9109012]
[1756486445671,7.52729719,204.95,204.88,7.9109012]
[1756486445878,11.8113,204.92,204.88,7.9109012]
[1756486446074,7.42,204.91,204.88,7.9109012]
[1756486446773,4.391,204.94,204.88,7.9109012]
[1756486446975,7.27,204.96,204.88,12.3029012]
[1756486447474,7.27,204.96,204.9,0.03331974]
[1756486447774,7.27,204.93,204.9,0.03331974]
[1756486448078,7.27,204.91,204.9,0.03331974]
[1756486448479,7.75,204.91,204.9,0.03331974]
[1756486450580,7.27,204.91,204.9,0.03331974]
[1756486450774,75.83889719,204.92,204.88,7.9109012]
[1756486450978,7.27,204.91,204.88,7.9109012]
[1756486451172,7.27,204.89,204.88,7.9109012]
[1756486452981,9.67644888,204.89,204.88,7.9109012]
[1756486453173,9.67644888,204.89,204.88,0.4346012]
[1756486454475,2.40644888,204.89,204.88,0.4346012]
[1756486454680,4.3918,204.9,204.88,0.4346012]
[1756486454879,0.03690027,204.93,204.89,7.64]
[1756486455980,0.03690027,204.93,204.88,0.4346012]
[1756486456180,0.03690027,204.93,204.89,7.64]
[1756486457084,2.40618622,204.92,204.89,7.64]
[1756486457377,2.40633875,204.91,204.84,7.64]
[1756486457582,2.40633875,204.9,204.84,7.64]
[1756486457775,7.27,204.92,204.84,7.64]
[1756486458079,0.03282439,204.89,204.79,13.03061767]
[1756486458279,2.40685438,204.88,204.79,13.03061767]
[1756486458591,0.03282439,204.89,204.8,7.64]
[1756486459679,4.3923,204.88,204.81,4.3935]
[1756486459982,0.03282439,204.89,204.8,7.64]
[1756486460184,2.40917111,204.88,204.81,4.3935]
[1756486460383,4.42482439,204.89,204.81,4.3935]
[1756486460785,4.42482439,204.89,204.82,7.64]
[1756486460982,0.03282439,204.89,204.82,7.64]
[1756486461187,2.40930239,204.88,204.79,5.39061767]
[1756486461488,9.67930239,204.87,204.8,7.64]
[1756486461679,2.40930239,204.86,204.8,7.64]
[1756486462389,4.3934,204.83,204.8,7.64]
[1756486462583,7.27,204.87,204.8,7.64]
[1756486462886,7.27,204.84,204.79,5.39061767]
[1756486463086,4.3939,204.81,204.79,5.39061767]
[1756486463997,11.6639,204.81,204.79,5.39061767]
[1756486464193,9.68090192,204.8,204.79,5.39061767]
[1756486464692,68.3272,204.87,204.79,5.39061767]
[1756486464995,0.03721254,204.82,204.79,5.39061767]
[1756486465196,2.41133432,204.81,204.79,5.39061767]
[1756486465396,0.03721254,204.82,204.79,13.03061767]
[1756486465597,0.03721254,204.82,204.8,7.64]
[1756486465798,0.03721254,204.82,204.79,5.39061767]
[1756486466103,0.03721254,204.82,204.79,13.03061767]
[1756486467094,0.03721254,204.82,204.79,5.39061767]
[1756486467494,0.03721254,204.82,204.8,7.64]
[1756486468199,0.03721254,204.82,204.79,5.39061767]
[1756486468699,2.41363307,204.81,204.8,7.64]
[1756486468896,0.03721254,204.82,204.79,5.39061767]
[1756486469297,0.03721254,204.82,204.81,7.64]
[1756486470703,26.62,204.93,204.84,7.64]
[1756486470893,2.41337558,204.92,204.84,7.64]
[1756486471097,2.41337558,204.91,204.82,68.3433]
[1756486471390,2.41337558,204.9,204.83,7.64]
[1756486471593,4.3911,204.94,204.86,4.3925]
[1756486471796,2.41296718,204.93,204.87,7.64]
[1756486472000,2.41296718,204.92,204.85,7.64]
[1756486472199,2.41296718,204.91,204.85,7.64]
[1756486472504,12.72563486,204.99,204.87,7.64]
[1756486472702,2.41236623,204.98,204.87,7.64]
[1756486473003,2.41236623,204.97,204.87,7.64]
[1756486473201,2.41236623,204.96,204.9,0.03392489]
[1756486473403,2.41236623,204.95,204.91,7.64]
[1756486473703,2.41236623,204.94,204.91,7.64]
[1756486473905,2.41174655,204.93,204.91,7.64]
[1756486474205,12.72563486,204.99,204.9,7.67392489]
[1756486474399,2.41140926,204.98,204.9,7.67392489]
[1756486474600,2.41140926,204.97,204.91,4.3914]
[1756486474800,2.41140926,204.96,204.92,7.64]
[1756486475104,2.41140926,204.95,204.92,7.64]
[1756486475308,5.45563486,204.99,204.91,12.0314]
[1756486475507,2.41062264,204.98,204.91,12.0314]
[1756486475708,2.41062264,204.97,204.91,12.0314]
[1756486476006,9.84563486,204.99,204.91,12.0314]
[1756486476206,2.41028654,204.98,204.91,12.0314]
[1756486476505,2.41028654,204.97,204.91,12.0314]
[1756486476702,9.84563486,204.99,204.91,12.0314]
[1756486477009,76.2047,204.97,204.9,0.03392489]
[1756486477308,2.40946902,204.96,204.9,0.03392489]
[1756486477513,10.31946902,204.95,204.9,0.03392489]
[1756486477709,12.3013,204.93,204.9,0.03392489]
[1756486477910,2.40968691,204.92,204.9,0.03392489]
[1756486478110,12.3013,204.93,204.9,0.03392489]
[1756486478311,4.3913,204.93,204.9,0.03392489]
[1756486478706,4.3907,204.95,204.9,0.03392489]
[1756486478907,2.40946919,204.94,204.9,0.03392489]
[1756486479107,7.91,204.94,204.9,0.03392489]
[1756486479508,12.3007,204.95,204.9,0.03392489]
[1756486479809,14.71023563,204.94,204.9,0.03392489]
[1756486480009,2.40913563,204.93,204.9,0.03392489]
[1756486481110,12.3011,204.94,204.9,0.03392489]
[1756486481510,4.3905,204.96,204.9,0.03392489]
[1756486481812,2.40869395,204.95,204.91,7.91]
[1756486482007,134.57,204.98,204.91,7.91]
[1756486482209,2.4084607,204.97,204.91,7.91]
[1756486482408,2.4084607,204.96,204.91,7.91]
[1756486482708,2.4084607,204.95,204.91,7.91]
[1756486482910,134.57,204.98,204.91,7.91]
[1756486483112,7.91,204.95,204.9,0.03392489]
[1756486483307,7.91,204.93,204.9,0.03392489]
[1756486483500,2.40823009,204.92,204.9,0.03392489]
[1756486483706,7.91,204.92,204.9,0.03392489]
[1756486484711,12.3014,204.92,204.9,0.03392489]
[1756486485012,7.91,204.91,204.9,0.03392489]
[1756486485212,10.31848272,204.91,204.9,0.03392489]
[1756486485513,10.31848272,204.91,204.9,2.489e-05]
[1756486486509,136.89848272,204.91,204.9,2.489e-05]
[1756486487914,128.98848272,204.91,204.9,2.489e-05]
[1756486488313,136.89848272,204.91,204.9,2.489e-05]
[1756486488714,134.49,204.91,204.9,2.489e-05]
[1756486488913,7.91,204.91,204.9,2.489e-05]
[1756486494912,10.79827871,204.91,204.9,2.489e-05]
[1756486496419,12.3024,204.87,204.86,5.39061767]
[1756486496616,141.15067871,204.87,204.86,5.39061767]
[1756486497912,141.15067871,204.87,204.8,4.3938]
[1756486498117,138.7424,204.87,204.8,4.3938]
[1756486499422,7.91,204.87,204.81,4.3935]
[1756486499621,126.44,204.86,204.81,4.3935]
[1756486499822,126.44,204.86,204.79,5.39061767]
[1756486499823,7.91,204.85,204.79,5.39061767]
[1756486500022,7.91,204.8,204.79,5.39061767]
[1756486500317,2.40943913,204.8,204.79,5.39061767]
[1756486500512,85.34,204.81,204.79,5.39061767]
[1756486500921,0.03251943,204.82,204.79,5.39061767]
[1756486501223,0.03251943,204.82,204.8,7.91]
[1756486501820,0.03251943,204.82,204.79,5.39061767]
[1756486502024,0.03251943,204.82,204.8,7.91]
[1756486502321,0.03251943,204.82,204.81,7.91]
[1756486504422,134.37,204.93,204.82,7.91]
[1756486504623,2.40796793,204.92,204.84,4.67126876]
[1756486504823,2.40796793,204.91,204.84,4.67126876]
[1756486505022,4.3919,204.9,204.84,4.67126876]
[1756486505524,4.3914,204.92,204.85,0.0325418]
[1756486505724,134.37,204.93,204.85,7.9425418]
[1756486505919,2.407831,204.92,204.85,7.9425418]
[1756486506120,4.391,204.94,204.86,4.3925]
[1756486506320,2.40769906,204.93,204.86,4.3925]
[1756486506523,4.391,204.94,204.86,4.3925]
[1756486506724,4.391,204.94,204.87,0.03516182]
[1756486508230,4.3913,204.93,204.87,0.03516182]
[1756486508624,80.83536876,204.94,204.87,0.03516182]
[1756486508825,7.86,204.88,204.87,0.03516182]
[1756486510027,68.3278,204.87,204.76,5.39061767]
[1756486510228,10.26965215,204.86,204.76,5.39061767]
[1756486510529,7.86,204.84,204.76,5.39061767]
[1756486510730,126.44,204.83,204.76,5.39061767]
[1756486510927,7.86,204.8,204.76,5.39061767]
[1756486511129,7.86,204.82,204.76,5.39061767]
[1756486511330,0.03249467,204.8,204.76,13.11061767]
[1756486512032,7.86,204.79,204.76,5.39061767]
[1756486512236,0.03249467,204.8,204.76,5.39061767]
[1756486512928,0.03249467,204.8,204.77,7.72]
[1756486513133,0.03249467,204.8,204.79,7.72]
[1756486515235,0.03249467,204.8,204.73,7.47425785]
[1756486515533,0.03249467,204.8,204.78,4.3943]
[1756486516032,0.03249467,204.8,204.79,7.72]
[1756486516330,0.03249467,204.8,204.77,7.72]
[1756486516538,0.03249467,204.8,204.72,5.39061767]
[1756486516837,0.03249467,204.8,204.74,4.395]
[1756486517336,0.03249467,204.8,204.73,7.72]
[1756486518135,0.03249467,204.8,204.73,12.1152]
[1756486519134,0.03249467,204.8,204.74,4.395]
[1756486519641,0.03249467,204.8,204.73,7.72]
[1756486520240,0.03249467,204.8,204.75,4.3948]
[1756486520541,0.03249467,204.8,204.76,7.72]
[1756486520731,0.03249467,204.8,204.72,5.39061767]
[1756486521433,4.42659467,204.8,204.72,9.78611767]
[1756486522042,0.03249467,204.8,204.72,5.39061767]
[1756486522340,0.03249467,204.8,204.76,11.77363124]
[1756486523740,0.03249467,204.8,204.77,7.72]
[1756486525239,0.03249467,204.8,204.76,4.05363124]
[1756486525440,0.03249467,204.8,204.76,11.77363124]
[1756486526642,0.03249467,204.8,204.77,7.72]
[1756486527741,0.03249467,204.8,204.78,7.72]
[1756486527941,0.03249467,204.8,204.77,4.3944]
[1756486528240,0.03249467,204.8,204.78,7.72]
[1756486528636,0.03249467,204.8,204.76,4.05363124]
[1756486528842,0.03249467,204.8,204.76,11.77363124]
[1756486529241,4.42659467,204.8,204.76,11.77363124]
[1756486529738,12.2545,204.78,204.77,3.124e-05]
[1756486530042,7.86,204.77,204.74,4.891e-05]
[1756486530234,7.47425785,204.76,204.74,4.891e-05]
[1756486530430,7.86,204.75,204.74,4.891e-05]
[1756486530835,68.8484,204.75,204.71,8.0859265]
[1756486531037,7.86,204.74,204.71,8.0859265]
[1756486531340,134.32,204.75,204.71,8.0859265]
[1756486531538,7.86,204.74,204.71,8.0859265]
[1756486531739,126.49184718,204.75,204.71,8.0859265]
[1756486532038,0.03184718,204.75,204.71,15.8059265]
[1756486532238,0.03184718,204.75,204.72,7.72]
[1756486532441,0.03184718,204.75,204.71,8.0859265]
[1756486532633,0.03184718,204.75,204.72,7.72]
[1756486532837,0.03184718,204.75,204.71,8.0859265]
[1756486533037,0.03184718,204.75,204.72,7.72]
[1756486534342,0.03184718,204.75,204.71,8.0859265]
[1756486535141,0.03184718,204.75,204.71,12.4816265]
[1756486535342,0.03184718,204.75,204.72,7.72]
[1756486535743,0.03184718,204.75,204.74,7.72]
[1756486538848,0.03184718,204.75,204.72,7.95]
[1756486540247,0.03184718,204.75,204.71,4.3958]
[1756486540649,0.03184718,204.75,204.72,7.95]
[1756486540850,0.03184718,204.75,204.71,4.3958]
[1756486541349,0.03184718,204.75,204.71,68.3798]
[1756486541552,0.03184718,204.75,204.72,7.47425785]
[1756486541851,328.08,204.87,204.74,7.95]
[1756486542047,2.40512807,204.86,204.74,7.95]
[1756486542248,2.40521196,204.85,204.74,7.95]
[1756486542449,328.08,204.87,204.74,7.95]
[1756486542652,6.79791179,204.86,204.79,4.394]
[1756486542853,4.3927,204.86,204.79,4.394]
[1756486543154,4.3918,204.9,204.83,4.3931]
[1756486543355,2.40493055,204.89,204.83,4.3931]
[1756486543655,7.83,204.91,204.85,4.3927]
[1756486543855,13.28563486,204.96,204.84,15.42425785]
[1756486544056,2.40432196,204.95,204.84,15.45693648]
[1756486544254,13.28563486,204.96,204.84,15.45693648]
[1756486544455,2.40332794,204.95,204.84,15.45693648]
[1756486544656,4.3907,204.95,204.87,4.3922]
[1756486544954,4.3907,204.95,204.84,15.45693648]
[1756486545150,4.3907,204.95,204.84,15.42425785]
[1756486545351,4.3907,204.95,204.87,0.03370841]
[1756486546059,13.28563486,204.96,204.88,7.95]
[1756486546655,4.3909,204.95,204.87,0.03370841]
[1756486547055,13.28563486,204.96,204.87,7.98370841]
[1756486548455,17.67633486,204.96,204.87,12.37590841]
[1756486548860,17.67633486,204.96,204.87,7.98370841]
[1756486549362,17.67633486,204.96,204.89,4.3918]
[1756486549564,4.3909,204.95,204.87,7.98370841]
[1756486550260,4.3909,204.95,204.87,12.37590841]
[1756486550461,13.28563486,204.96,204.87,7.98370841]
[1756486550861,13.28563486,204.96,204.89,4.3918]
[1756486551763,7.83,204.96,204.87,12.37610841]
[1756486552062,7.83,204.96,204.87,7.98370841]
[1756486553362,4.3909,204.95,204.88,4.392]
[1756486554567,7.83,204.96,204.88,4.392]
[1756486554864,126.36,204.99,204.89,7.95]
[1756486555563,126.36,204.99,204.92,0.03201938]
[1756486556265,130.75,204.99,204.92,4.42321938]
[1756486557360,4.3902,204.98,204.92,0.03201938]
[1756486557560,126.36,204.99,204.92,0.03201938]
[1756486557866,7.83,204.93,204.92,0.03201938]
[1756486558564,4.3919,204.9,204.81,8.0859265]
[1756486558763,134.17,204.93,204.81,8.0859265]
[1756486559369,12.49668802,204.88,204.81,8.0859265]
[1756486559664,126.32,204.87,204.81,8.0859265]
[1756486559869,126.3552968,204.87,204.81,8.0859265]
[1756486560260,0.0352968,204.87,204.81,8.0859265]
[1756486560464,0.0352968,204.87,204.85,7.95]
[1756486560862,0.0352968,204.87,204.86,7.95]
[1756486561466,0.0352968,204.87,204.86,8.43]
[1756486563268,9.68e-05,204.87,204.86,8.43]
[1756486563468,7.83,204.97,204.86,84.2278234]
[1756486563663,7.83,204.97,204.86,83.7478234]
[1756486563857,12.2204,204.97,204.89,4.3919]
[1756486564063,7.83,204.97,204.89,4.3919]
[1756486564368,7.83,204.97,204.86,7.95]
[1756486564666,7.83,204.98,204.91,0.03651426]
[1756486565264,68.2887,204.99,204.91,0.03651426]
[1756486565265,7.83,204.92,204.91,0.03651426]
[1756486566767,4.392,204.89,204.82,8.0859265]
[1756486566968,7.83,204.92,204.82,8.0859265]
[1756486567672,7.83,204.92,204.82,5.3947824]
[1756486567868,4.3924,204.88,204.82,9.7880824]
[1756486568676,0.03607383,204.89,204.82,13.3147824]
[1756486569274,4.42807383,204.89,204.82,17.7080824]
[1756486570179,4.3924,204.88,204.82,17.7080824]
[1756486570570,0.03607383,204.89,204.82,5.3947824]
[1756486570872,141.7087234,204.88,204.82,5.3947824]
[1756486571170,7.94,204.84,204.82,5.3947824]
[1756486571376,7.94,204.83,204.82,5.3947824]
[1756486573368,0.03175564,204.85,204.82,13.3147824]
[1756486573776,7.94,204.84,204.82,5.3947824]
[1756486573975,0.03175564,204.85,204.82,5.3947824]
[1756486574475,7.94,204.84,204.82,5.3947824]
[1756486574879,7.94,204.84,204.76,12.3147]
[1756486575278,7.94,204.84,204.76,7.92]
[1756486575573,7.94,204.84,204.73,5.3947824]
[1756486575780,134.24,204.84,204.73,5.3947824]
[1756486575977,68.3438,204.82,204.73,5.3947824]
[1756486576280,7.97752645,204.81,204.73,5.3947824]
[1756486576881,4.3948,204.77,204.73,5.3947824]
[1756486577075,12.3348,204.77,204.73,5.3947824]
[1756486577280,7.94,204.77,204.73,5.3947824]
[1756486577479,7.94,204.74,204.73,5.3947824]
[1756486578379,15.8887234,204.74,204.73,8.24e-05]
[1756486578772,7.94,204.74,204.73,8.24e-05]
[1756486579881,8.42,204.74,204.73,8.24e-05]
[1756486580577,7.94,204.73,204.7,8.0859265]
[1756486580782,7.4687234,204.71,204.65,10.75850913]
[1756486580984,7.94,204.7,204.65,10.75850913]
[1756486581382,15.4087234,204.71,204.65,10.75850913]
[1756486581582,7.94,204.69,204.65,10.75850913]
[1756486581883,0.03399892,204.7,204.65,10.75850913]
[1756486582180,0.03399892,204.7,204.66,7.92]
[1756486582376,0.03399892,204.7,204.65,10.75850913]
[1756486582882,0.03399892,204.7,204.64,7.92]
[1756486583383,0.03399892,204.7,204.68,4.3963]
[1756486583579,0.03399892,204.7,204.68,12.3163]
[1756486583784,0.03399892,204.7,204.69,7.92]
[1756486584175,52.8,204.81,204.71,76.2998]
[1756486584978,134.26,204.81,204.71,76.2998]
[1756486585284,134.26,204.81,204.74,0.0358964]
[1756486585486,7.94,204.81,204.74,0.0358964]
[1756486585785,7.94,204.8,204.76,4.3946]
[1756486585982,15.4087234,204.84,204.76,7.92]
[1756486586286,126.32,204.83,204.76,7.92]
[1756486586678,68.3062,204.94,204.76,76.2808]
[1756486586875,15.4087234,204.9,204.78,7.92]
[1756486587075,100.06,204.89,204.79,68.353]
[1756486587275,100.06,204.89,204.81,4.3937]
[1756486587479,100.06,204.89,204.82,0.03290214]
[1756486588181,7.94,204.88,204.82,0.03290214]
[1756486589282,396.4394,204.96,204.82,0.03290214]
[1756486589487,7.94,204.93,204.82,0.03290214]
[1756486589688,7.94,204.93,204.81,76.2659]
[1756486589882,7.94,204.93,204.82,4.3933]
[1756486590083,7.94,204.93,204.85,0.0348996]
[1756486590992,7.94,204.91,204.85,0.0348996]
[1756486591683,4.3922,204.89,204.85,0.0348996]
[1756486591885,7.94,204.88,204.85,0.0348996]
[1756486592281,126.3,204.89,204.85,0.0348996]
[1756486592486,126.3,204.9,204.85,0.0348996]
[1756486592693,134.24,204.9,204.85,0.0348996]
[1756486593191,7.94,204.89,204.85,0.0348996]
[1756486594488,126.3,204.9,204.85,7.9548996]
[1756486594690,134.24,204.9,204.85,0.0348996]
[1756486595287,134.24,204.9,204.85,7.9548996]
[1756486595594,7.94,204.89,204.85,0.0348996]
[1756486596185,126.3,204.9,204.85,0.0348996]
[1756486596388,7.94,204.89,204.73,7.4687234]